fUSD/lending_fUSD_20240924
["ID","MTS","AMOUNT","RATE_DAILY","PERIOD"]
[339076589,1727207431754,-201.34185824,0.000128,2]
[339076590,1727207431765,-164.67766966,0.000128,2]
[339076591,1727207431775,-4353.05062356,0.000128,2]
[339076592,1727207431785,-500.0,0.00012822,2]
[339076593,1727207431796,-500.0,0.00012822,2]
[339076594,1727207431806,-150.99,0.00012822,2]
[339076595,1727207431819,-299.99,0.00012822,2]
[339076596,1727207431829,-361.146,0.00012829,2]
[339076597,1727207431838,-1759.51,0.00012876,2]
[339076598,1727207431848,-1759.51,0.00012876,2]
[339076599,1727207431857,-1446.26868776,0.00012876,2]
[339076600,1727207431868,-313.24131224,0.00012876,2]
[339076601,1727207431878,-1759.51,0.00012876,2]
[339076603,1727207431887,-1759.51,0.00012876,2]
[339076605,1727207431897,-1759.51,0.00012876,2]
[339076607,1727207431906,-1759.51,0.00012876,2]
[339076609,1727207431915,-1759.51,0.00012876,2]
[339076611,1727207431925,-1759.51,0.00012876,2]
[339076612,1727207431935,-1759.51,0.00012876,2]
[339076613,1727207431945,-1759.51,0.00012876,2]
[339076614,1727207431955,-1759.51,0.00012876,2]
[339076615,1727207431965,-1759.51,0.00012876,2]
[339076616,1727207431975,-150.0,0.00012877,2]
[339076617,1727207431984,-1759.51,0.00012879,2]
[339076618,1727207431993,-156.9903658,0.00012895,2]
[339076619,1727207432003,-10830.7089554,0.00012895,2]
[339076620,1727207432012,-188.3884389,0.00012895,2]
[339076621,1727207432021,-3030.9524982,0.00012895,2]
[339076622,1727207432031,-1759.51,0.00012897,2]
[339076623,1727207432040,-1759.51,0.00012897,2]
[339076624,1727207432050,-1759.51,0.00012897,2]
[339076625,1727207432059,-1759.51,0.00012897,2]
[339076626,1727207432071,-1759.51,0.00012897,2]
[339076627,1727207432080,-1759.51,0.00012897,2]
[339076628,1727207432090,-1759.51,0.00012897,2]
[339076629,1727207432099,-1759.51,0.00012897,2]
[339076630,1727207432108,-1759.51,0.00012897,2]
[339076631,1727207432117,-1759.66431236,0.00012897,2]
[339076632,1727207432126,-151.0,0.00012898,2]
[339076633,1727207432135,-151.0,0.00012898,2]
[339076634,1727207432144,-151.0,0.00012898,2]
[339076635,1727207432154,-378.47044477,0.00012899,2]
[339076636,1727207432162,-1000.0,0.00012899,2]
[339076637,1727207432171,-1000.0,0.00012899,2]
[339076638,1727207432181,-1000.0,0.00012899,2]
[339076639,1727207432190,-1000.0,0.00012899,2]
[339076640,1727207432199,-1000.0,0.00012899,3]
[339076641,1727207432208,-6166.21729319,0.00012899,2]
[339076642,1727207432217,-556.0,0.000129,2]
[339076643,1727207432226,-103839.14686946,0.000129,2]
[339076644,1727207432238,-282.87461582,0.000129,2]
[339076645,1727207432249,-2948.80265338,0.000129,2]
[339076646,1727207432260,-3753.76120749,0.000129,2]
[339076647,1727207432273,-10774.44975929,0.000129,2]
[339076648,1727207432285,-676.1,0.000129,2]
[339076649,1727207432297,-2924.1931872,0.000129,2]
[339076650,1727207432315,-8033.04087757,0.000129,2]
[339076651,1727207432327,-1245.568807,0.000129,2]
[339076652,1727207432338,-204625.53736786,0.000129,2]
[339076653,1727207432347,-69079.55328033,0.000129,2]
[339076654,1727207432358,-1175.66,0.000129,6]
[339076655,1727207432367,-106800.853878,0.000129,2]
[339076656,1727207432379,-896.13144154,0.000129,2]
[339076657,1727207432394,-2763.18092288,0.000129,2]
[339076658,1727207432405,-12794.72798971,0.000129,2]
[339076659,1727207437805,-968448.37077505,0.000129,2]
[339076660,1727207437861,-999.99999999,0.000129,2]
[339076661,1727207437874,-17087.14656187,0.000129,2]
[339076662,1727207437885,-11216.25702667,0.000129,2]
[339076663,1727207437896,-12612.34474342,0.000129,2]
[339076664,1727207437967,-463.99900633,0.000129,2]
[339076665,1727207438023,-1333.72372209,0.000129,2]
[339076667,1727207438035,-1468.0599626,0.000129,2]
[339076823,1727207439753,-321.7284694,0.000129,2]
[339076833,1727207439850,-188.2715306,0.000129,2]
[339076835,1727207439860,-17051.2295327,0.000129,2]
[339077039,1727207442749,-193.98264943,0.000128,2]
[339077041,1727207442759,-668.1417888,0.00012895,2]
[339077047,1727207442804,-116.8100402,0.00012895,2]
[339077049,1727207442813,-171.53395976,0.000129,2]
[339077330,1727207445588,-176.1,0.00012445,2]
[339077332,1727207445600,-166.6091,0.000128,2]
[339077334,1727207445611,-235.0759,0.000129,2]
[339077336,1727207445622,-1604.8533,0.000129,2]
[339077369,1727207445930,-45.6514514,0.000129,2]
[339077610,1727207465050,500.0,0.00010082,2]
[339077611,1727207483339,500.0,0.00010082,2]
[339077612,1727207567895,-248.5294,0.00011808,2]
[339077613,1727207567915,-432.73,0.00011958,2]
[339077614,1727207567938,-520.0,0.00011958,2]
[339077615,1727207567958,-164.43,0.00011966,2]
[339077616,1727207567978,-200.0,0.0001197,2]
[339077617,1727207567998,-250.0,0.00011987,2]
[339077618,1727207568018,-10000.0,0.00012171,2]
[339077619,1727207568037,-3184.3106,0.00012799,2]
[339077620,1727207587184,-2909.6356,0.00012799,2]
[339077621,1727207587205,-377.80463083,0.000128,2]
[339077622,1727207587224,-500.0,0.00012822,2]
[339077623,1727207587245,-500.0,0.00012822,2]
[339077624,1727207587268,-300.0,0.00012898,2]
[339077625,1727207587292,-300.0,0.00012899,2]
[339077626,1727207587311,-112.55976917,0.00012899,2]
[339077627,1727207599817,-257.90671441,0.000127,2]
[339077628,1727207599837,-887.44023083,0.00012899,2]
[339077629,1727207599857,-854.65305476,0.00012899,2]
[339077630,1727207641469,500.0,0.00010082,2]
[339077631,1727207662357,500.0,0.00010082,2]
[339077632,1727207710876,369.2,0.00010048,2]
[339077633,1727207743577,500.0,0.00010082,2]
[339077634,1727207766841,500.0,8.986e-05,2]
[339077635,1727208065060,1050.0,0.00011,2]
[339077636,1727208176647,-500.0,0.00011726,2]
[339077637,1727208176668,-250.0,0.00011852,2]
[339077638,1727208176689,-584.0,0.00011882,2]
[339077639,1727208176708,-200.0,0.00011893,2]
[339077640,1727208176728,-250.0,0.000119,2]
[339077641,1727208176748,-428.58,0.00011949,2]
[339077642,1727208176769,-227.8,0.00011949,2]
[339077643,1727208203784,500.0,0.00010082,2]
[339077645,1727208282665,387.57,9.998e-05,2]
[339077677,1727208422430,-400.0,0.00013918,30]
[339077678,1727208433713,150.5,0.00013143,120]
[339077679,1727208434311,284.5,0.00013133,120]
[339077681,1727208569134,156.1,0.00010959,2]
[339077687,1727208631716,-416.47,0.00011857,2]
[339077688,1727208631726,-250.0,0.00011869,2]
[339077689,1727208631736,-406.54,0.00011875,2]
[339077690,1727208631745,-214.29,0.00011889,2]
[339077691,1727208631754,-250.0,0.00011892,2]
[339077692,1727208631763,-150.0,0.00011899,2]
[339077693,1727208631773,-300.0,0.00011899,2]
[339077694,1727208631782,-500.0,0.000119,2]
[339077695,1727208631792,-500.0,0.000119,2]
[339077696,1727208631801,-500.0,0.000119,2]
[339077697,1727208631810,-500.0,0.000119,2]
[339077698,1727208631821,-500.0,0.000119,2]
[339077699,1727208631830,-500.0,0.000119,2]
[339077700,1727208631839,-500.0,0.000119,2]
[339077701,1727208631848,-500.0,0.000119,2]
[339077702,1727208631857,-500.0,0.000119,2]
[339077703,1727208631867,-500.0,0.000119,2]
[339077704,1727208631876,-500.0,0.000119,2]
[339077705,1727208631886,-7.53037917,0.000119,2]
[339077706,1727208631897,-492.46962083,0.000119,2]
[339077707,1727208631906,-111.44926325,0.000119,2]
[339077708,1727208631918,-388.55073675,0.000119,2]
[339077709,1727208631927,-500.0,0.000119,2]
[339077710,1727208631935,-500.0,0.000119,2]
[339077711,1727208631945,-205.89428138,0.000119,2]
[339077712,1727208631956,-294.10571862,0.000119,2]
[339077713,1727208631965,-20.89428138,0.000119,2]
[339077714,1727208631978,-479.10571862,0.000119,2]
[339077715,1727208631987,-500.0,0.000119,2]
[339077716,1727208631997,-500.0,0.000119,2]
[339077717,1727208632007,-646.04,0.000119,2]
[339077718,1727208632016,-500.0,0.000119,2]
[339077719,1727208632027,-500.0,0.000119,2]
[339077720,1727208632036,-500.0,0.000119,2]
[339077721,1727208632046,-411.60176614,0.000119,2]
[339077722,1727208632057,-88.39823386,0.000119,2]
[339077723,1727208632067,-500.0,0.000119,2]
[339077724,1727208632077,-500.0,0.000119,2]
[339077725,1727208632086,-293.55367171,0.000119,2]
[339077726,1727208632099,-206.44632829,0.000119,2]
[339077727,1727208632108,-500.0,0.000119,2]
[339077728,1727208632117,-5.57734488,0.000119,2]
[339077729,1727208632128,-494.42265512,0.000119,2]
[339077730,1727208632137,-403.88,0.000119,2]
[339077731,1727208632146,-286.06,0.00011905,2]
[339077732,1727208632155,-243.5,0.00011916,2]
[339077733,1727208632164,-387.57,0.00012262,2]
[339077734,1727208632174,-192.24,0.00012487,2]
[339077735,1727208632183,-1000.0,0.000126,2]
[339077736,1727208632192,-1215.0,0.000127,2]
[339077737,1727208632201,-500.0,0.00012797,2]
[339077738,1727208632211,-200.0,0.00012797,2]
[339077739,1727208632220,-2530.88688302,0.000128,2]
[339077740,1727208632231,-146.41111698,0.000128,2]
[339077741,1727208632240,-499.99,0.000128,2]
[339077742,1727208632250,-361.3291,0.000128,2]
[339077743,1727208632260,-1854.30095143,0.000128,2]
[339077744,1727208632271,-3967.22964857,0.000128,2]
[339077745,1727208632280,-169.05853928,0.000128,2]
[339077746,1727208632290,-7232.34170006,0.000128,2]
[339077747,1727208632299,-500.0,0.00012822,2]
[339077748,1727208632308,-500.0,0.00012822,2]
[339077749,1727208632318,-500.0,0.00012822,2]
[339077750,1727208632327,-932.0585495,0.00012895,2]
[339077751,1727208632341,-337.275,0.00012898,2]
[339077752,1727208632350,-189.23522239,0.00012899,2]
[339077753,1727208632359,-337.57234019,0.00012899,2]
[339077754,1727208632371,-497.48514,0.00012899,2]
[339077755,1727208632382,-164.94251981,0.00012899,2]
[339077756,1727208632391,-454.70922326,0.00012899,2]
[339077757,1727208632402,-545.29077674,0.00012899,2]
[339077758,1727208632411,-1000.0,0.00012899,2]
[339077759,1727208632421,-1000.0,0.00012899,2]
[339077760,1727208632430,-9.74409891,0.00012899,2]
[339077761,1727208632446,-990.25590109,0.00012899,2]
[339077762,1727208632455,-559.13269091,0.000129,2]
[339077763,1727208632467,-19289.99999953,0.000129,2]
[339077764,1727208632478,-501.23538144,0.000129,2]
[339077765,1727208632489,-2903.71306986,0.000129,2]
[339077766,1727208632501,-3421.55845167,0.000129,2]
[339077767,1727208632511,-2228.53585342,0.000129,2]
[339077768,1727208632523,-787.72537109,0.000129,2]
[339077769,1727208632535,-809.14403611,0.000129,2]
[339077770,1727208632546,-1697.0288294,0.000129,2]
[339077771,1727208632558,-740.97,0.000129,2]
[339077772,1727208632571,-9867.46314013,0.000129,2]
[339077773,1727208632589,-1722.66563156,0.000129,2]
[339077774,1727208632599,-156978.38619282,0.000129,2]
[339077775,1727208632610,-6683.26958659,0.000129,2]
[339077776,1727208632621,-1339.32568212,0.000129,2]
[339077777,1727208632631,-9925.73485824,0.000129,2]
[339077778,1727208632642,-2408.87747833,0.000129,2]
[339077779,1727208632652,-474.46635641,0.000129,2]
[339077780,1727208632663,-61665.75832327,0.000129,2]
[339077781,1727208632674,-3367.18326653,0.000129,2]
[339077782,1727208632683,-3079.31673347,0.000129,2]
[339077783,1727208632694,-910.67391534,0.000129,2]
[339077784,1727208632706,-636.79253411,0.000129,2]
[339077785,1727208632716,-1993.78445097,0.000129,2]
[339077801,1727208637804,-301.12664511,0.000129,2]
[339077803,1727208637858,-7665.23504461,0.000129,2]
[339077804,1727208637913,-749.4970653,0.000129,2]
[339077805,1727208638019,-358.48667185,0.000129,2]
[339077806,1727208638075,-256.9894911,0.000129,2]
[339077807,1727208638087,-556.9432742,0.000129,2]
[339077808,1727208638128,-352.52727591,0.000129,2]
[339077809,1727208638182,-14949.84129609,0.000129,2]
[339077811,1727208639854,-800.05981962,0.000129,2]
[339077812,1727208639914,-300.59930483,0.000129,2]
[339077813,1727208639926,-54126.41486008,0.000129,2]
[339077814,1727208639971,-1455.7832205,0.000129,2]
[339077815,1727208639984,-482.64270945,0.000129,2]
[339077816,1727208639995,-3544.8614595,0.000129,2]
[339077817,1727208640006,-11953.20000001,0.000129,2]
[339077818,1727208640018,-8467.04682707,0.000129,2]
[339078026,1727208642754,-14868.054033,0.000129,2]
[339078027,1727208642765,-3307.12738747,0.000129,2]
[339078028,1727208642859,-664228.64157393,0.000129,2]
[339078029,1727208642965,-4970.15451879,0.000129,2]
[339078030,1727208642976,-546.41878386,0.000129,2]
[339078031,1727208642989,-13190.16168377,0.000129,2]
[339078035,1727208645782,-1450.56001016,0.000129,2]
[339078036,1727208645794,-592.70000134,0.000129,2]
[339078037,1727208645806,-9656.38023301,0.000129,2]
[339078038,1727208645818,-14880.0,0.000129,2]
[339078039,1727208645926,-8015.90949981,0.000129,2]
[339078040,1727208645970,-7855.48994863,0.000129,2]
[339078123,1727208705008,500.0,0.00010082,2]
[339078124,1727208705074,500.0,0.00010082,2]
[339078125,1727208706089,589.02619414,0.00010082,2]
[339078126,1727208725644,200.0,0.00021,60]
[339078127,1727208803410,500.0,0.00010082,2]
[339078128,1727208848928,385.39,0.00010041,2]
[339078129,1727209154877,232.37,0.00010959,2]
[339078132,1727209236703,500.0,0.00010082,2]
[339078134,1727209569550,425.55,9.575e-05,2]
[339078135,1727209687120,1838.66,0.00022,120]
[339078152,1727209763679,183.81,0.00010959,2]
[339078172,1727209831921,-410.9818888,0.00011189,2]
[339078173,1727209831931,-567.64800799,0.00011235,2]
[339078174,1727209831948,-686.70513767,0.00011235,2]
[339078175,1727209831961,-745.64685434,0.00011235,2]
[339078176,1727209831971,-274.22,0.00011269,2]
[339078177,1727209831981,-112.52037091,0.00011289,2]
[339078178,1727209831994,-337.47962909,0.00011289,2]
[339078179,1727209832004,-250.0,0.00011352,2]
[339078180,1727209832015,-200.0,0.00011357,2]
[339078181,1727209832026,-184.44822387,0.00011389,2]
[339078182,1727209832036,-155.73,0.00011408,2]
[339078183,1727209832046,-251.71,0.00011409,2]
[339078184,1727209832057,-2275.09,0.00011417,2]
[339078185,1727209832067,-300.0,0.00011426,2]
[339078186,1727209832077,-150.99,0.00011426,2]
[339078187,1727209832087,-1894.55214704,0.00011427,2]
[339078188,1727209832101,-2450.46785296,0.00011427,2]
[339078189,1727209832111,-236.18423717,0.00011437,2]
[339078190,1727209832123,-13.81576283,0.00011437,2]
[339078191,1727209832134,-250.0,0.0001148,2]
[339078192,1727209832144,-150.0,0.00011589,2]
[339078193,1727209832154,-150.0,0.00011589,2]
[339078194,1727209832164,-150.0,0.00011589,2]
[339078195,1727209832175,-150.0,0.00011589,2]
[339078196,1727209832184,-150.0,0.00011589,2]
[339078197,1727209832195,-2479.17,0.00011595,2]
[339078198,1727209832205,-1087.43,0.0001169,2]
[339078199,1727209832215,-4193.89947245,0.00011692,2]
[339078200,1727209832227,-1181.26213134,0.00011692,2]
[339078201,1727209832240,-485.91839621,0.00011692,2]
[339078202,1727209832250,-0.6775616,0.00011702,2]
[339078203,1727209832263,-227.2024384,0.00011702,2]
[339078204,1727209832273,-166.83,0.00011794,2]
[339078206,1727209832282,-205.9675616,0.00011839,2]
[339078208,1727209832295,-219.5824384,0.00011839,2]
[339078210,1727209832305,-1000.0,0.00011958,2]
[339078212,1727209832315,-420.0,0.00012551,2]
[339078213,1727209832325,-274.22,0.00012677,2]
[339078214,1727209832339,-150.0,0.00012699,2]
[339078216,1727209832350,-1539.73447061,0.000127,2]
[339078218,1727209832363,-375.41552939,0.000127,2]
[339078220,1727209832374,-5125.35573786,0.000127,2]
[339078223,1727209832386,-2437.99633404,0.000127,2]
[339078225,1727209832398,-4548.09399337,0.000127,2]
[339078227,1727209832410,-1092.85082834,0.000127,2]
[339078230,1727209832423,-3934.00439614,0.000127,2]
[339078232,1727209832435,-428.45648914,0.000127,2]
[339078235,1727209832448,-711.01118688,0.000127,2]
[339078237,1727209832460,-1827.91072361,0.000127,2]
[339078239,1727209832472,-8139.8589404,0.000127,2]
[339078241,1727209832484,-4700.0,0.000127,2]
[339078244,1727209832496,-536.83568415,0.000127,2]
[339078246,1727209832508,-68383.83208607,0.000127,2]
[339078248,1727209832518,-1723.4823,0.000127,2]
[339078250,1727209832528,-6243.2312,0.000127,2]
[339078252,1727209832538,-1261.737,0.000127,2]
[339078254,1727209832548,-6840.77953551,0.000127,2]
[339078256,1727209832558,-2450.3223,0.000127,2]
[339078259,1727209832568,-385.83864864,0.000127,2]
[339078261,1727209832578,-6840.77953544,0.00012711,2]
[339078263,1727209832588,-385.83864859,0.00012714,2]
[339078265,1727209832600,-6840.77953544,0.00012722,2]
[339078267,1727209832610,-385.83864859,0.00012729,2]
[339078269,1727209832620,-6840.77953544,0.00012733,2]
[339078271,1727209832630,-385.83864859,0.00012743,2]
[339078273,1727209832640,-6840.77953544,0.00012744,2]
[339078275,1727209832650,-6840.77953544,0.00012756,2]
[339078277,1727209832660,-385.83864859,0.00012757,2]
[339078279,1727209832670,-974.0,0.00012761,2]
[339078281,1727209832680,-3915.78571765,0.00012767,2]
[339078283,1727209832692,-2924.99381779,0.00012767,2]
[339078285,1727209832702,-385.83864859,0.00012771,2]
[339078286,1727209832712,-6840.77953544,0.00012778,2]
[339078288,1727209832722,-54370.39712111,0.0001278,2]
[339078290,1727209832732,-385.83864859,0.00012786,2]
[339078292,1727209832742,-2092.39390516,0.00012789,2]
[339078295,1727209832754,-4748.38563028,0.00012789,2]
[339078297,1727209832765,-2462.61436972,0.0001279,2]
[339078299,1727209832781,-4583.21247117,0.0001279,2]
[339078302,1727209832793,-454.17315911,0.0001279,2]
[339078304,1727209832803,-5656.58213927,0.0001279,2]
[339078306,1727209832813,-720.63103144,0.0001279,2]
[339078308,1727209832824,-926.08055544,0.0001279,2]
[339078310,1727209832834,-336.84020246,0.0001279,2]
[339078312,1727209832845,-5656.58213926,0.00012795,2]
[339078314,1727209832863,-720.63103143,0.00012795,2]
[339078316,1727209832873,-500.0,0.00012797,2]
[339078318,1727209832883,-200.0,0.00012797,2]
[339078320,1727209832894,-269.82,0.00012799,2]
[339078322,1727209832904,-7622.69266988,0.000128,2]
[339078325,1727209832916,-5556.03767952,0.000128,2]
[339078327,1727209832928,-304.7845227,0.000128,2]
[339078331,1727209832954,-15101.8855279,0.000128,2]
[339078333,1727209832966,-2001.1252,0.000128,2]
[339078335,1727209832978,-173.9992,0.000128,2]
[339078338,1727209832989,-480.2651,0.000128,2]
[339078340,1727209833001,-4899.7954,0.000128,2]
[339078342,1727209833013,-184.30203902,0.000128,2]
[339078344,1727209833024,-4110.4836,0.000128,2]
[339078346,1727209833036,-27932.32817231,0.000128,2]
[339078349,1727209833050,-16428.87262769,0.000128,2]
[339078351,1727209833062,-1000.0,0.000128,2]
[339078353,1727209833074,-176.76676772,0.000128,2]
[339078379,1727209833409,-6840.77953544,0.000128,2]
[339078380,1727209833429,-5656.58213926,0.000128,2]
[339078381,1727209833440,-720.63103143,0.000128,2]
[339078382,1727209833450,-385.83864859,0.000128,2]
[339078383,1727209833459,-500.0,0.00012822,2]
[339078384,1727209833469,-500.0,0.00012822,2]
[339078385,1727209833479,-516.5994,0.00012835,2]
[339078386,1727209833489,-500.0,0.0001287,2]
[339078387,1727209833500,-205.70233478,0.00012889,2]
[339078388,1727209833509,-35674.10013703,0.0001289,2]
[339078389,1727209833521,-383172.70966548,0.0001289,2]
[339078390,1727209833531,-34046.57173433,0.0001289,2]
[339078391,1727209833543,-4221.79258543,0.0001289,2]
[339078392,1727209833555,-2497.50370162,0.0001289,2]
[339078398,1727209838029,-400.0,0.0001289,2]
[339078399,1727209838196,-812146.67071109,0.0001289,2]
[339078400,1727209838207,-462.45588772,0.0001289,2]
[339078401,1727209838219,-461.27657119,0.0001289,2]
[339078402,1727209838250,-37010.14324801,0.0001289,2]
[339078403,1727209838308,-729.66,0.0001289,2]
[339078404,1727209838319,-925.56170541,0.0001289,2]
[339078405,1727209838331,-7958.54185658,0.0001289,2]
[339078406,1727209838345,-6016.27157419,0.0001289,2]
[339078407,1727209838379,-2644.17619719,0.0001289,2]
[339078408,1727209838389,-317.6523734,0.0001289,2]
[339078409,1727209838400,-7814.03324931,0.0001289,2]
[339078410,1727209838413,-6470.20833297,0.0001289,2]
[339078411,1727209838437,-1103.40368203,0.0001289,2]
[339078414,1727209838450,-5340.98495427,0.0001289,2]
[339078416,1727209838461,-338.26352533,0.0001289,2]
[339078420,1727209839837,-157514.84068572,0.0001289,2]
[339078421,1727209839850,-435.34334363,0.0001289,2]
[339078422,1727209839862,-31238.89417484,0.0001289,2]
[339078423,1727209839895,-1341.45000002,0.0001289,2]
[339078424,1727209839906,-262.894995,0.0001289,2]
[339078425,1727209839918,-5859.46811615,0.0001289,2]
[339078426,1727209839951,-2959.8889332,0.0001289,2]
[339078427,1727209839962,-6564.8223725,0.0001289,2]
[339078428,1727209840008,-1539.999995,0.0001289,2]
[339078429,1727209840019,-13569.94457782,0.0001289,2]
[339078430,1727209840031,-1505.04594099,0.0001289,2]
[339078431,1727209840066,-255.4974,0.0001289,2]
[339078432,1727209840077,-302.2027,0.0001289,2]
[339078433,1727209840088,-13316.1104248,0.0001289,2]
[339078434,1727209840127,-1320.4089835,0.0001289,2]
[339078435,1727209840139,-266.70264255,0.0001289,2]
[339078706,1727209842944,-1140.8516147,0.00012632,2]
[339078708,1727209842955,-25439.80908899,0.0001289,2]
[339078710,1727209842966,-283.24226264,0.0001289,2]
[339078712,1727209842978,-211371.97607568,0.0001289,2]
[339078715,1727209842989,-382.92113158,0.0001289,2]
[339078717,1727209843005,-1109.25964547,0.0001289,2]
[339078719,1727209843016,-603.62491081,0.0001289,2]
[339078722,1727209843027,-642.70249532,0.0001289,2]
[339078724,1727209843038,-468421.90440105,0.0001289,2]
[339078733,1727209843121,-550.77736889,0.0001289,2]
[339078743,1727209843232,-264.07877945,0.0001289,2]
[339078763,1727209845949,-255.1122,0.00011189,2]
[339078764,1727209845959,-35.78175,0.00012876,2]
[339078765,1727209846113,-498.96398686,0.00012876,2]
[339078766,1727209846122,-2709.84244703,0.0001289,2]
[339078770,1727209867483,1050.0,0.00011,2]
[339078771,1727209870098,500.0,0.00010082,2]
[339078772,1727209871336,343.99208034,0.00010082,2]
[339078796,1727210243986,415.22,9.892e-05,2]
[339078797,1727210247840,166.66,0.00010959,2]
[339078798,1727210268695,833.34,0.00010959,2]
[339078799,1727210270874,1025.0,0.00013571,30]
[339078800,1727210314106,156.31,0.00010959,2]
[339078803,1727210849266,424.96,9.78e-05,2]
[339078815,1727211031989,-255.1122,0.00011489,2]
[339078817,1727211032001,-161.04,0.00011579,2]
[339078818,1727211032012,-64.6620455,0.00011589,2]
[339078819,1727211032024,-85.3379545,0.00011589,2]
[339078820,1727211032035,-166.01666048,0.00011592,2]
[339078821,1727211032048,-578.84333952,0.00011592,2]
[339078822,1727211032059,-200.0,0.00011635,2]
[339078823,1727211032070,-300.0,0.00011656,2]
[339078824,1727211032080,-10703.98,0.00011657,2]
[339078825,1727211032091,-250.0,0.00011683,2]
[339078826,1727211032101,-250.0,0.00011683,2]
[339078827,1727211032111,-1000.0,0.00011703,2]
[339078828,1727211032121,-166.83,0.00011727,2]
[339078829,1727211032132,-250.0,0.00011742,2]
[339078830,1727211032142,-344.13,0.00011746,2]
[339078831,1727211032152,-155.73,0.00011748,2]
[339078832,1727211032162,-262.79,0.00011791,2]
[339078833,1727211032172,-1902.52,0.00011794,2]
[339078834,1727211032185,-1010.0,0.00011794,2]
[339078835,1727211032196,-1000.0,0.00011917,2]
[339078836,1727211032206,-1458.34,0.0001204,2]
[339078837,1727211032216,-1010.0,0.0001204,2]
[339078838,1727211032226,-424.96,0.00012043,2]
[339078839,1727211032236,-5263.48763376,0.00012565,3]
[339078840,1727211032246,-1995.98453136,0.00012632,2]
[339078841,1727211032256,-152.28,0.00012632,2]
[339078842,1727211032267,-857.11149439,0.000127,2]
[339078843,1727211032277,-633.0363,0.0001279,2]
[339078844,1727211032287,-307.5881,0.0001279,2]
[339078845,1727211032297,-1422.4903,0.0001279,2]
[339078846,1727211032307,-150.0,0.00012793,2]
[339078847,1727211032318,-1698.1671903,0.00012793,2]
[339078848,1727211032327,-1698.1671903,0.00012794,2]
[339078849,1727211032337,-1698.1671903,0.00012796,2]
[339078850,1727211032347,-1698.1671903,0.00012797,2]
[339078852,1727211032357,-500.0,0.00012797,2]
[339078854,1727211032367,-200.0,0.00012797,2]
[339078856,1727211032377,-7500.0,0.00012797,2]
[339078857,1727211032387,-1698.1671903,0.00012798,2]
[339078860,1727211032397,-193.27,0.00012798,2]
[339078862,1727211032407,-352.922,0.00012798,2]
[339078864,1727211032417,-1698.1671903,0.00012799,2]
[339078865,1727211032428,-177.56180833,0.000128,2]
[339078866,1727211032440,-170.54036844,0.000128,2]
[339078867,1727211032449,-1698.1671903,0.000128,2]
[339078868,1727211032459,-1000.0,0.000128,2]
[339078869,1727211032470,-205.01068911,0.000128,2]
[339078870,1727211032480,-420.0,0.000128,2]
[339078871,1727211032490,-464.84805318,0.00012822,2]
[339078872,1727211032500,-1000.0,0.00012835,2]
[339078873,1727211032510,-1000.0,0.00012835,2]
[339078874,1727211032520,-1000.0,0.00012835,2]
[339078875,1727211032529,-1000.0,0.00012835,2]
[339078876,1727211032539,-1000.0,0.00012835,2]
[339078877,1727211032549,-1000.0,0.00012835,2]
[339078878,1727211032559,-1000.0,0.00012835,2]
[339078879,1727211032569,-1000.0,0.00012835,2]
[339078880,1727211032580,-1000.0,0.00012835,2]
[339078881,1727211032590,-568.2401,0.00012835,2]
[339078882,1727211032600,-500.0,0.00012876,2]
[339078883,1727211032610,-186.67744967,0.0001288,2]
[339078884,1727211032620,-152.85,0.0001288,2]
[339078885,1727211032630,-1860.7483356,0.00012887,2]
[339078886,1727211032642,-9308.02162226,0.00012889,2]
[339078887,1727211032651,-503.06745464,0.00012889,2]